[Event "*** MasterClass Titled Tuesday Blitz"]
[Site "Chess.com"]
[Date "2017.07.04"]
[Round "4"]
[White "Zufi1811"]
[Black "evgenyermolaev"]
[Result "1-0"]
[WhiteElo "2383"]
[BlackElo "2303"]
[TimeControl "180+2"]
[EndTime "13:51:19 PDT"]
[Termination "Zufi1811 won by resignation"]

1. e4 {[%clk 0:02:57]} 1... c5 {[%clk 0:02:59.1]} 2. Nf3 {[%clk 0:02:57.4]} 2...
d6 {[%clk 0:03:00.4]} 3. d4 {[%clk 0:02:58.5]} 3... cxd4 {[%clk 0:03:02.3]} 4.
Nxd4 {[%clk 0:03:00.4]} 4... Nf6 {[%clk 0:03:03.7]} 5. Nc3 {[%clk 0:03:01.2]}
5... a6 {[%clk 0:03:05.2]} 6. h3 {[%clk 0:03:02.3]} 6... e5 {[%clk 0:03:06.1]}
7. Nb3 {[%clk 0:03:02.7]} 7... Be7 {[%clk 0:03:06.3]} 8. Be3 {[%clk 0:03:01.2]}
8... Be6 {[%clk 0:03:06.9]} 9. Qf3 {[%clk 0:03:01.2]} 9... Nbd7 {[%clk
0:02:58.7]} 10. O-O-O {[%clk 0:02:58.7]} 10... Rc8 {[%clk 0:02:54.8]} 11. Nd5
{[%clk 0:02:58.6]} 11... Bxd5 {[%clk 0:02:54]} 12. exd5 {[%clk 0:03:01.6]} 12...
O-O {[%clk 0:02:36.5]} 13. Kb1 {[%clk 0:03:00.6]} 13... Qc7 {[%clk 0:02:33.7]}
14. c3 {[%clk 0:03:00.1]} 14... Nb6 {[%clk 0:01:58.6]} 15. Bxb6 {[%clk
0:02:35.2]} 15... Qxb6 {[%clk 0:01:58.8]} 16. Bd3 {[%clk 0:02:36.8]} 16... a5
{[%clk 0:01:51.5]} 17. Nd2 {[%clk 0:02:13.5]} 17... Rxc3 {[%clk 0:00:51]} 18.
Bxh7+ {[%clk 0:02:12.4]} 18... Nxh7 {[%clk 0:00:42.8]} 19. Qxc3 {[%clk
0:02:14.3]} 19... Qxf2 {[%clk 0:00:39.8]} 20. Qxa5 {[%clk 0:02:01.5]} 20... Qxg2
{[%clk 0:00:36.7]} 21. Rhg1 {[%clk 0:01:58.7]} 21... Qxh3 {[%clk 0:00:36.6]} 22.
Qc7 {[%clk 0:01:49]} 22... Bg5 {[%clk 0:00:30.4]} 23. Ne4 {[%clk 0:01:32]} 23...
Qf5 {[%clk 0:00:26.8]} 24. Qc2 {[%clk 0:01:33.3]} 24... Rc8 {[%clk 0:00:25.1]}
25. Nf6+ {[%clk 0:01:27.3]} 25... Qxf6 {[%clk 0:00:10.1]} 26. Qxc8+ {[%clk
0:01:29.5]} 26... Nf8 {[%clk 0:00:11.2]} 27. Rdf1 {[%clk 0:01:23.5]} 27... Qg6+
{[%clk 0:00:11.4]} 28. Qf5 {[%clk 0:01:23.9]} 28... Qxf5+ {[%clk 0:00:09.6]} 29.
Rxf5 {[%clk 0:01:25.8]} 29... Bf4 {[%clk 0:00:10.7]} 30. Rf6 {[%clk 0:01:19.2]}
30... Ng6 {[%clk 0:00:07.7]} 31. Rxd6 {[%clk 0:01:11.6]} 31... e4 {[%clk
0:00:08.4]} 32. Rdxg6 {[%clk 0:01:06.7]} 32... fxg6 {[%clk 0:00:08.8]} 33. Rxg6
{[%clk 0:01:03.9]} 33... Kf7 {[%clk 0:00:09.6]} 34. Re6 {[%clk 0:00:52.7]} 34...
e3 {[%clk 0:00:10]} 35. Kc2 {[%clk 0:00:53.5]} 35... g5 {[%clk 0:00:10.7]} 36.
Kd3 {[%clk 0:00:53.1]} 36... g4 {[%clk 0:00:11.1]} 37. Re4 {[%clk 0:00:51.8]}
1-0

[Event "*** MasterClass Titled Tuesday Blitz"]
[Site "Chess.com"]
[Date "2017.07.04"]
[Round "4"]
[White "politeplayer"]
[Black "Bad4life"]
[Result "1-0"]
[WhiteElo "2176"]
[BlackElo "2269"]
[TimeControl "180+2"]
[EndTime "13:51:19 PDT"]
[Termination "politeplayer won by resignation"]

1. e4 {[%clk 0:03:00.6]} 1... c5 {[%clk 0:02:59.5]} 2. Nf3 {[%clk 0:03:00.4]}
2... d6 {[%clk 0:03:00.8]} 3. d4 {[%clk 0:03:01.8]} 3... cxd4 {[%clk 0:03:02.7]}
4. Nxd4 {[%clk 0:03:03.3]} 4... Nf6 {[%clk 0:03:04.2]} 5. Nc3 {[%clk 0:03:04.8]}
5... g6 {[%clk 0:03:05.4]} 6. Be3 {[%clk 0:03:05.1]} 6... Bg7 {[%clk 0:03:03.9]}
7. f3 {[%clk 0:03:06.3]} 7... O-O {[%clk 0:03:04.8]} 8. Qd2 {[%clk 0:03:07.8]}
8... Nc6 {[%clk 0:03:06.3]} 9. Bc4 {[%clk 0:03:09.1]} 9... Bd7 {[%clk
0:03:07.2]} 10. O-O-O {[%clk 0:03:09.4]} 10... Rc8 {[%clk 0:03:08.3]} 11. Bb3
{[%clk 0:03:10.7]} 11... Ne5 {[%clk 0:03:09.6]} 12. h4 {[%clk 0:03:09.3]} 12...
h5 {[%clk 0:03:10.4]} 13. Bh6 {[%clk 0:03:08.3]} 13... Rxc3 {[%clk 0:03:04.3]}
14. bxc3 {[%clk 0:02:44.8]} 14... Qa5 {[%clk 0:03:01.7]} 15. Bxg7 {[%clk
0:02:39]} 15... Kxg7 {[%clk 0:03:01.2]} 16. g4 {[%clk 0:02:34.6]} 16... Rc8
{[%clk 0:02:56.8]} 17. g5 {[%clk 0:02:11.6]} 17... Ne8 {[%clk 0:02:50.1]} 18. f4
{[%clk 0:01:54.4]} 18... Nc4 {[%clk 0:02:38.3]} 19. Bxc4 {[%clk 0:01:54]} 19...
Rxc4 {[%clk 0:02:38.6]} 20. Nb3 {[%clk 0:01:54]} 20... Qa3+ {[%clk 0:02:31.3]}
21. Kb1 {[%clk 0:01:49.3]} 21... Ra4 {[%clk 0:02:28.9]} 22. f5 {[%clk
0:01:24.7]} 22... Qxa2+ {[%clk 0:02:18.5]} 23. Kc1 {[%clk 0:01:25.3]} 23... Qa3+
{[%clk 0:02:06.2]} 24. Kb1 {[%clk 0:01:25.2]} 24... Nc7 {[%clk 0:01:58.9]} 25.
f6+ {[%clk 0:01:18.9]} 25... Kh7 {[%clk 0:01:28.8]} 26. fxe7 {[%clk 0:01:14.3]}
26... Nb5 {[%clk 0:01:10.5]} 27. Rdf1 {[%clk 0:01:01.7]} 27... Qa2+ {[%clk
0:00:46.8]} 28. Kc1 {[%clk 0:01:01.5]} 28... Be8 {[%clk 0:00:30.4]} 29. Qd5
{[%clk 0:00:50.1]} 29... Qa3+ {[%clk 0:00:13.5]} 30. Kd2 {[%clk 0:00:48.4]}
30... Kg7 {[%clk 0:00:12]} 31. Ra1 {[%clk 0:00:38.3]} 31... Qb2 {[%clk
0:00:13.2]} 32. Rxa4 {[%clk 0:00:30.3]} 32... Qxc3+ {[%clk 0:00:14.6]} 33. Kc1
{[%clk 0:00:21.4]} 33... Bc6 {[%clk 0:00:14.6]} 34. Qc4 {[%clk 0:00:18.1]} 34...
Qe3+ {[%clk 0:00:15]} 35. Kb1 {[%clk 0:00:18.3]} 35... Qf3 {[%clk 0:00:12.7]}
36. Rf1 {[%clk 0:00:17.7]} 36... Nc3+ {[%clk 0:00:10.9]} 37. Ka1 {[%clk
0:00:17.8]} 37... Qe3 {[%clk 0:00:02.7]} 38. Qxf7+ {[%clk 0:00:17.7]} 1-0

[Event "*** MasterClass Titled Tuesday Blitz"]
[Site "Chess.com"]
[Date "2017.07.04"]
[Round "4"]
[White "JammyDodger91"]
[Black "GM_dmitrij"]
[Result "1/2-1/2"]
[WhiteElo "2295"]
[BlackElo "2492"]
[TimeControl "180+2"]
[EndTime "13:51:28 PDT"]
[Termination "Game drawn - insufficient material"]

1. e4 {[%clk 0:03:01.9]} 1... e5 {[%clk 0:03:00.5]} 2. Nf3 {[%clk 0:03:02]} 2...
Nc6 {[%clk 0:03:01.5]} 3. Bb5 {[%clk 0:03:02.4]} 3... f5 {[%clk 0:03:02.5]} 4.
Nc3 {[%clk 0:03:00.6]} 4... fxe4 {[%clk 0:03:03.5]} 5. Nxe4 {[%clk 0:03:02.5]}
5... Nf6 {[%clk 0:03:04.6]} 6. Qe2 {[%clk 0:03:02.1]} 6... d5 {[%clk 0:03:04.8]}
7. Nxf6+ {[%clk 0:03:02.2]} 7... gxf6 {[%clk 0:03:06.4]} 8. d4 {[%clk
0:03:01.8]} 8... Bg7 {[%clk 0:03:07.9]} 9. dxe5 {[%clk 0:03:00.9]} 9... O-O
{[%clk 0:03:09.4]} 10. Bxc6 {[%clk 0:02:59.6]} 10... bxc6 {[%clk 0:03:11.3]} 11.
e6 {[%clk 0:03:00.2]} 11... Re8 {[%clk 0:03:07.2]} 12. O-O {[%clk 0:02:59.9]}
12... Bxe6 {[%clk 0:03:06.1]} 13. Qd3 {[%clk 0:02:51.2]} 13... Qd7 {[%clk
0:02:59.9]} 14. Be3 {[%clk 0:02:44.6]} 14... Bg4 {[%clk 0:02:45.5]} 15. Bc5
{[%clk 0:02:32.5]} 15... Qf5 {[%clk 0:02:20.4]} 16. Qxf5 {[%clk 0:02:28.6]}
16... Bxf5 {[%clk 0:02:22.3]} 17. Nd4 {[%clk 0:02:29.2]} 17... Bd7 {[%clk
0:02:22.9]} 18. Rfe1 {[%clk 0:02:25.3]} 18... a6 {[%clk 0:02:00.7]} 19. Kf1
{[%clk 0:02:03]} 19... Bf8 {[%clk 0:01:44.9]} 20. Nb3 {[%clk 0:01:59.5]} 20...
Bf5 {[%clk 0:01:45.7]} 21. Bxf8 {[%clk 0:01:47]} 21... Kxf8 {[%clk 0:01:45.5]}
22. Nd4 {[%clk 0:01:47.2]} 22... Bd7 {[%clk 0:01:45.3]} 23. b4 {[%clk
0:01:46.8]} 23... Rxe1+ {[%clk 0:01:39.8]} 24. Rxe1 {[%clk 0:01:42.6]} 24... a5
{[%clk 0:01:40.5]} 25. a3 {[%clk 0:01:42.1]} 25... axb4 {[%clk 0:01:27.5]} 26.
axb4 {[%clk 0:01:44]} 26... Ra4 {[%clk 0:01:12.8]} 27. c3 {[%clk 0:01:44]} 27...
c5 {[%clk 0:01:10.3]} 28. bxc5 {[%clk 0:01:38.7]} 28... Rc4 {[%clk 0:01:12.2]}
29. Ne6+ {[%clk 0:01:31.7]} 29... Bxe6 {[%clk 0:01:11]} 30. Rxe6 {[%clk
0:01:33.6]} 30... Rxc5 {[%clk 0:00:54.3]} 31. Rxf6+ {[%clk 0:01:32.8]} 31... Kg7
{[%clk 0:00:50.1]} 32. Rf3 {[%clk 0:01:32.4]} 32... Ra5 {[%clk 0:00:49]} 33. Ke2
{[%clk 0:01:31.7]} 33... c5 {[%clk 0:00:49.9]} 34. Ke3 {[%clk 0:01:31.2]} 34...
Ra4 {[%clk 0:00:48.7]} 35. Rf5 {[%clk 0:01:15.4]} 35... Ra3 {[%clk 0:00:42.2]}
36. Kd3 {[%clk 0:01:09.9]} 36... Ra2 {[%clk 0:00:33.5]} 37. g4 {[%clk
0:01:05.4]} 37... c4+ {[%clk 0:00:34.1]} 38. Kd4 {[%clk 0:01:03]} 38... Rd2+
{[%clk 0:00:34.9]} 39. Kc5 {[%clk 0:01:03.1]} 39... Rd3 {[%clk 0:00:31.9]} 40.
Rxd5 {[%clk 0:01:01.3]} 40... Rxc3 {[%clk 0:00:33.2]} 41. Rd4 {[%clk 0:00:46.9]}
41... Rf3 {[%clk 0:00:29.9]} 42. Rxc4 {[%clk 0:00:46.7]} 42... Rxf2 {[%clk
0:00:31.2]} 43. h4 {[%clk 0:00:47]} 43... Rh2 {[%clk 0:00:32.1]} 44. g5 {[%clk
0:00:44.9]} 44... Kg6 {[%clk 0:00:32.5]} 45. Kd5 {[%clk 0:00:39.3]} 45... Kh5
{[%clk 0:00:33]} 46. Ke6 {[%clk 0:00:31.6]} 46... Rxh4 {[%clk 0:00:31.6]} 47.
Rxh4+ {[%clk 0:00:30.6]} 47... Kxh4 {[%clk 0:00:32.8]} 48. Kf6 {[%clk
0:00:31.4]} 48... Kh5 {[%clk 0:00:33.9]} 49. Kf5 {[%clk 0:00:30.2]} 49... Kh4
{[%clk 0:00:34.9]} 50. g6 {[%clk 0:00:30.5]} 50... hxg6+ {[%clk 0:00:36]} 51.
Kxg6 {[%clk 0:00:32.4]} 1/2-1/2

[Event "*** MasterClass Titled Tuesday Blitz"]
[Site "Chess.com"]
[Date "2017.07.04"]
[Round "4"]
[White "CraiggoryC"]
[Black "latigre"]
[Result "1-0"]
[WhiteElo "2065"]
[BlackElo "1767"]
[TimeControl "180+2"]
[EndTime "13:51:33 PDT"]
[Termination "CraiggoryC won by resignation"]

1. e4 {[%clk 0:02:55.4]} 1... e5 {[%clk 0:03:00.2]} 2. Nf3 {[%clk 0:02:55.7]}
2... Nc6 {[%clk 0:03:01.7]} 3. Bb5 {[%clk 0:02:56.1]} 3... a6 {[%clk 0:03:01.4]}
4. Ba4 {[%clk 0:02:57.4]} 4... Nf6 {[%clk 0:03:01.5]} 5. O-O {[%clk 0:02:57.3]}
5... b5 {[%clk 0:03:00.1]} 6. Bb3 {[%clk 0:02:57.6]} 6... Be7 {[%clk 0:03:02]}
7. d3 {[%clk 0:02:57.1]} 7... O-O {[%clk 0:03:02.4]} 8. Nc3 {[%clk 0:02:55.8]}
8... d6 {[%clk 0:03:01.8]} 9. a3 {[%clk 0:02:55.6]} 9... Nb8 {[%clk 0:03:01.6]}
10. h3 {[%clk 0:02:37.3]} 10... Nbd7 {[%clk 0:03:02.1]} 11. Nd5 {[%clk
0:02:37.4]} 11... c6 {[%clk 0:03:00]} 12. Nxe7+ {[%clk 0:02:37.3]} 12... Qxe7
{[%clk 0:03:01.4]} 13. Nh4 {[%clk 0:02:25.8]} 13... Nc5 {[%clk 0:03:01.2]} 14.
Ba2 {[%clk 0:02:13.5]} 14... Be6 {[%clk 0:02:05.6]} 15. Nf5 {[%clk 0:02:13.2]}
15... Bxf5 {[%clk 0:02:05.7]} 16. exf5 {[%clk 0:02:14]} 16... d5 {[%clk
0:01:59.2]} 17. Bg5 {[%clk 0:01:52.4]} 17... Qd6 {[%clk 0:01:59.5]} 18. Qf3
{[%clk 0:01:44.1]} 18... a5 {[%clk 0:01:52.6]} 19. Qg3 {[%clk 0:01:36.7]} 19...
Kh8 {[%clk 0:01:51.1]} 20. d4 {[%clk 0:01:28.9]} 20... Nfe4 {[%clk 0:01:21.2]}
21. dxc5 {[%clk 0:01:16.5]} 21... Nxg3 {[%clk 0:01:13.1]} 22. cxd6 {[%clk
0:01:15.6]} 22... Nxf1 {[%clk 0:01:06.6]} 23. Kxf1 {[%clk 0:00:35.7]} 23... f6
{[%clk 0:01:06.9]} 24. Be3 {[%clk 0:00:30.1]} 24... d4 {[%clk 0:01:01.3]} 25.
Bd2 {[%clk 0:00:24.6]} 25... Rfd8 {[%clk 0:01:01.4]} 26. f4 {[%clk 0:00:16.6]}
26... Rxd6 {[%clk 0:01:00.9]} 27. Re1 {[%clk 0:00:15.5]} 27... Re8 {[%clk
0:00:33.9]} 28. fxe5 {[%clk 0:00:14.7]} 28... Rxe5 {[%clk 0:00:27.4]} 29. Bf4
{[%clk 0:00:13.5]} 29... Rxe1+ {[%clk 0:00:27.2]} 30. Kxe1 {[%clk 0:00:14.3]}
30... Rd7 {[%clk 0:00:25.1]} 31. Kd2 {[%clk 0:00:14.4]} 31... c5 {[%clk
0:00:22.7]} 32. Be6 {[%clk 0:00:14.8]} 32... Rb7 {[%clk 0:00:19.6]} 33. Kd3
{[%clk 0:00:13.7]} 33... g6 {[%clk 0:00:19.3]} 34. g4 {[%clk 0:00:12.8]} 34...
gxf5 {[%clk 0:00:19.9]} 35. gxf5 {[%clk 0:00:13.7]} 35... Kg7 {[%clk 0:00:21.2]}
36. Bd6 {[%clk 0:00:13.6]} 36... b4 {[%clk 0:00:19.2]} 37. Bxc5 {[%clk
0:00:13.2]} 37... bxa3 {[%clk 0:00:20]} 38. Bxa3 {[%clk 0:00:13.1]} 38... Rb5
{[%clk 0:00:18.5]} 39. Kxd4 {[%clk 0:00:12.4]} 39... Re5 {[%clk 0:00:18.8]} 40.
c4 {[%clk 0:00:12.8]} 40... Re1 {[%clk 0:00:17.3]} 41. c5 {[%clk 0:00:13.4]}
41... Kf8 {[%clk 0:00:17.1]} 42. c6+ {[%clk 0:00:12.8]} 42... Ke8 {[%clk
0:00:18.3]} 43. c7 {[%clk 0:00:13.4]} 43... Rd1+ {[%clk 0:00:19.3]} 44. Ke3
{[%clk 0:00:13.6]} 44... Rc1 {[%clk 0:00:19.9]} 45. c8=Q+ {[%clk 0:00:14.1]}
45... Rxc8 {[%clk 0:00:19.9]} 46. Bxc8 {[%clk 0:00:16]} 1-0

[Event "*** MasterClass Titled Tuesday Blitz"]
[Site "Chess.com"]
[Date "2017.07.04"]
[Round "4"]
[White "FearlessKing64"]
[Black "merillium"]
[Result "0-1"]
[WhiteElo "2163"]
[BlackElo "2331"]
[TimeControl "180+2"]
[EndTime "13:51:33 PDT"]
[Termination "merillium won by resignation"]

1. e4 {[%clk 0:03:01.9]} 1... c5 {[%clk 0:03:00.8]} 2. Nf3 {[%clk 0:02:53.4]}
2... e6 {[%clk 0:03:01]} 3. c4 {[%clk 0:02:54.4]} 3... Nc6 {[%clk 0:02:57.5]} 4.
Nc3 {[%clk 0:02:55.7]} 4... g5 {[%clk 0:02:53.9]} 5. h3 {[%clk 0:02:50.3]} 5...
Bg7 {[%clk 0:02:54.9]} 6. d3 {[%clk 0:02:50.6]} 6... h6 {[%clk 0:02:53.6]} 7.
Be3 {[%clk 0:02:51.3]} 7... Nd4 {[%clk 0:02:44.2]} 8. e5 {[%clk 0:02:45.2]} 8...
d6 {[%clk 0:02:34]} 9. exd6 {[%clk 0:02:43.2]} 9... Qxd6 {[%clk 0:02:31]} 10.
Nxd4 {[%clk 0:02:26.5]} 10... cxd4 {[%clk 0:02:26.6]} 11. Nb5 {[%clk 0:02:25.8]}
11... Qd8 {[%clk 0:02:20.8]} 12. Qa4 {[%clk 0:02:05.9]} 12... Bd7 {[%clk
0:01:57]} 13. Bd2 {[%clk 0:01:34]} 13... a6 {[%clk 0:01:47]} 14. Nd6+ {[%clk
0:01:33.7]} 14... Kf8 {[%clk 0:01:42.4]} 15. Qa3 {[%clk 0:01:31.9]} 15... Ne7
{[%clk 0:01:26.1]} 16. Nxb7 {[%clk 0:01:26.5]} 16... Qb6 {[%clk 0:01:20.2]} 17.
Nc5 {[%clk 0:01:22.6]} 17... Bc6 {[%clk 0:01:19.1]} 18. Bb4 {[%clk 0:01:18.6]}
18... a5 {[%clk 0:01:17.5]} 19. Nxe6+ {[%clk 0:01:17.2]} 19... fxe6 {[%clk
0:01:16.6]} 20. Bxe7+ {[%clk 0:01:18.7]} 20... Kf7 {[%clk 0:01:15.7]} 21. Bc5
{[%clk 0:01:17.2]} 21... Qb7 {[%clk 0:01:15.4]} 22. f3 {[%clk 0:00:51.9]} 22...
Be5 {[%clk 0:01:14.6]} 23. Be2 {[%clk 0:00:49.4]} 23... Bg3+ {[%clk 0:01:14]}
24. Kd1 {[%clk 0:00:48.6]} 24... Rhd8 {[%clk 0:01:11.8]} 25. Rf1 {[%clk
0:00:46.3]} 25... Rab8 {[%clk 0:01:04.3]} 26. b3 {[%clk 0:00:47.2]} 26... Ra8
{[%clk 0:00:57.2]} 27. Qb2 {[%clk 0:00:47.7]} 27... e5 {[%clk 0:00:45.8]} 28. a3
{[%clk 0:00:38.5]} 28... Rab8 {[%clk 0:00:31.3]} 29. Kc2 {[%clk 0:00:36.8]}
29... Ba4 {[%clk 0:00:27.6]} 30. Rab1 {[%clk 0:00:34.4]} 30... Bc6 {[%clk
0:00:27.7]} 31. Bd1 {[%clk 0:00:33.6]} 31... Bf4 {[%clk 0:00:27.5]} 32. Rg1
{[%clk 0:00:23]} 32... Kg7 {[%clk 0:00:27.7]} 33. g3 {[%clk 0:00:23.8]} 33...
Be3 {[%clk 0:00:28]} 34. Rg2 {[%clk 0:00:25.2]} 34... Bxf3 {[%clk 0:00:23.2]}
35. Bxf3 {[%clk 0:00:24.6]} 35... Qxf3 {[%clk 0:00:25.1]} 36. Rh2 {[%clk
0:00:13.8]} 36... Qxg3 {[%clk 0:00:26.2]} 37. Rbh1 {[%clk 0:00:14.5]} 37... Kh7
{[%clk 0:00:20.9]} 38. Kb1 {[%clk 0:00:15.9]} 38... Bf4 {[%clk 0:00:15.9]} 39.
Rg2 {[%clk 0:00:15.1]} 39... Qxd3+ {[%clk 0:00:15.8]} 40. Ka2 {[%clk 0:00:13.4]}
40... a4 {[%clk 0:00:16.6]} 41. b4 {[%clk 0:00:12.9]} 41... Qxc4+ {[%clk
0:00:16.5]} 42. Ka1 {[%clk 0:00:14.3]} 42... Rdc8 {[%clk 0:00:14.5]} 43. Rc2
{[%clk 0:00:15.1]} 43... Qd3 {[%clk 0:00:14.1]} 44. h4 {[%clk 0:00:15.7]} 44...
Qg6 {[%clk 0:00:14.8]} 45. hxg5 {[%clk 0:00:16.5]} 45... Bxg5 {[%clk 0:00:16.7]}
46. Bxd4 {[%clk 0:00:15]} 46... Rxc2 {[%clk 0:00:16.4]} 47. Qxc2 {[%clk
0:00:16.1]} 47... Qxc2 {[%clk 0:00:16.4]} 0-1

[Event "*** MasterClass Titled Tuesday Blitz"]
[Site "Chess.com"]
[Date "2017.07.04"]
[Round "4"]
[White "JeffReinberg"]
[Black "FairChess_on_YouTube"]
[Result "1/2-1/2"]
[WhiteElo "2524"]
[BlackElo "2695"]
[TimeControl "180+2"]
[EndTime "13:52:04 PDT"]
[Termination "Game drawn by repetition"]

1. e4 {[%clk 0:03:01.9]} 1... c5 {[%clk 0:02:59.6]} 2. Nc3 {[%clk 0:03:02.4]}
2... a6 {[%clk 0:03:00]} 3. d3 {[%clk 0:03:02.7]} 3... b5 {[%clk 0:03:00.7]} 4.
g3 {[%clk 0:03:03.8]} 4... Bb7 {[%clk 0:03:01.6]} 5. Bg2 {[%clk 0:03:04.8]} 5...
g6 {[%clk 0:03:02.7]} 6. f4 {[%clk 0:03:06]} 6... Bg7 {[%clk 0:03:03.7]} 7. Nf3
{[%clk 0:03:07.2]} 7... b4 {[%clk 0:03:00.8]} 8. Ne2 {[%clk 0:03:07.4]} 8... Nc6
{[%clk 0:03:00.9]} 9. O-O {[%clk 0:03:08.3]} 9... d6 {[%clk 0:03:02]} 10. h3
{[%clk 0:03:06.7]} 10... Nf6 {[%clk 0:03:00.3]} 11. g4 {[%clk 0:03:03]} 11... a5
{[%clk 0:03:00.9]} 12. Ng3 {[%clk 0:02:51.3]} 12... h5 {[%clk 0:02:56.8]} 13. g5
{[%clk 0:02:50.8]} 13... Nd7 {[%clk 0:02:57.7]} 14. h4 {[%clk 0:02:50.6]} 14...
a4 {[%clk 0:02:57.3]} 15. Rb1 {[%clk 0:02:50.8]} 15... Qc7 {[%clk 0:02:52.7]}
16. Be3 {[%clk 0:02:42.9]} 16... Nd4 {[%clk 0:02:43.4]} 17. Ne2 {[%clk
0:02:40.9]} 17... Nxf3+ {[%clk 0:02:23.3]} 18. Bxf3 {[%clk 0:02:40.1]} 18... a3
{[%clk 0:02:22.5]} 19. b3 {[%clk 0:02:39.4]} 19... e6 {[%clk 0:02:19.2]} 20. Qd2
{[%clk 0:02:38.3]} 20... Rc8 {[%clk 0:02:15.4]} 21. Rbe1 {[%clk 0:02:33]} 21...
Nb8 {[%clk 0:02:08.5]} 22. f5 {[%clk 0:02:28.1]} 22... Be5 {[%clk 0:02:05.7]}
23. Bf4 {[%clk 0:02:26.2]} 23... Nc6 {[%clk 0:02:03.5]} 24. Bg2 {[%clk
0:02:18.9]} 24... O-O {[%clk 0:01:57.2]} 25. Bxe5 {[%clk 0:02:05.2]} 25... dxe5
{[%clk 0:01:59.1]} 26. fxg6 {[%clk 0:02:03.1]} 26... fxg6 {[%clk 0:01:59.4]} 27.
Bh3 {[%clk 0:02:02.8]} 27... Qe7 {[%clk 0:01:54.7]} 28. Rxf8+ {[%clk 0:01:53.9]}
28... Rxf8 {[%clk 0:01:56.6]} 29. Rf1 {[%clk 0:01:55.2]} 29... Rxf1+ {[%clk
0:01:41.2]} 30. Kxf1 {[%clk 0:01:54.6]} 30... Bc8 {[%clk 0:01:40.9]} 31. Qe3
{[%clk 0:01:51.4]} 31... Kf7 {[%clk 0:01:29.4]} 32. Qf2+ {[%clk 0:01:46.9]}
32... Ke8 {[%clk 0:01:29.8]} 33. Ke1 {[%clk 0:01:43.2]} 33... Qf8 {[%clk
0:01:15.4]} 34. Qxf8+ {[%clk 0:01:36.7]} 34... Kxf8 {[%clk 0:01:17.3]} 35. Kd2
{[%clk 0:01:36.1]} 35... Ke7 {[%clk 0:01:18]} 36. Bg2 {[%clk 0:01:17.3]} 36...
Kd6 {[%clk 0:01:18]} 37. Bf3 {[%clk 0:01:18]} 37... Nd4 {[%clk 0:01:16]} 38. Bg2
{[%clk 0:01:16.4]} 38... Bd7 {[%clk 0:01:07.7]} 39. Ng3 {[%clk 0:01:11.2]} 39...
Bc6 {[%clk 0:01:01.1]} 40. Nf1 {[%clk 0:01:11.1]} 40... Bb5 {[%clk 0:01:01.4]}
41. Ne3 {[%clk 0:01:11.2]} 41... Ba6 {[%clk 0:00:59.7]} 42. Bh1 {[%clk
0:01:09.4]} 42... Ke7 {[%clk 0:00:59.2]} 43. Bg2 {[%clk 0:01:09.1]} 43... Kd7
{[%clk 0:00:53.6]} 44. Bh1 {[%clk 0:01:06.7]} 44... Kd6 {[%clk 0:00:55.1]} 45.
Bg2 {[%clk 0:01:04.5]} 45... Nc6 {[%clk 0:00:56]} 46. Bh1 {[%clk 0:01:01.2]}
46... Ke7 {[%clk 0:00:57.9]} 47. Bg2 {[%clk 0:01:01.8]} 47... Nd4 {[%clk
0:00:58.7]} 48. Bh1 {[%clk 0:01:00.3]} 48... Nb5 {[%clk 0:00:57.9]} 49. Nd1
{[%clk 0:00:57.5]} 49... Bb7 {[%clk 0:00:54.5]} 50. Bg2 {[%clk 0:00:55]} 50...
Bc6 {[%clk 0:00:49.7]} 51. Bf3 {[%clk 0:00:54.6]} 51... Nd4 {[%clk 0:00:49]} 52.
Bg2 {[%clk 0:00:54]} 52... Bb5 {[%clk 0:00:48.3]} 53. Ne3 {[%clk 0:00:51.3]}
53... Nc6 {[%clk 0:00:45.8]} 54. Bh1 {[%clk 0:00:48.9]} 54... Kd6 {[%clk
0:00:45.9]} 55. Bg2 {[%clk 0:00:48.2]} 55... Ba6 {[%clk 0:00:47.1]} 56. Bh1
{[%clk 0:00:48.1]} 56... Na5 {[%clk 0:00:47.8]} 57. Bg2 {[%clk 0:00:42.7]} 57...
Ke7 {[%clk 0:00:45.3]} 58. Bh1 {[%clk 0:00:42.4]} 58... Nc6 {[%clk 0:00:42.8]}
59. Bg2 {[%clk 0:00:39.9]} 59... Nd4 {[%clk 0:00:44.3]} 60. Bh1 {[%clk 0:00:40]}
60... Bb5 {[%clk 0:00:38.8]} 61. Bg2 {[%clk 0:00:37.5]} 61... Ba6 {[%clk
0:00:39.9]} 62. Bh1 {[%clk 0:00:37.9]} 62... Bb5 {[%clk 0:00:41.1]} 63. Bg2
{[%clk 0:00:37.2]} 1/2-1/2